Workbook

Sheet Abstract of Bids
A1: Campus
A2: Address
A3: Phone: ; Fax: ; E-Mail:
A4: JOB ORDER CONTRACT ABSTRACT OF BID PROPOSALS
C6: Bid Solicitation Number: | D6: JOC-17.02 | K6: INSTRUCTIONS FOR COMPLETING THIS FORM:
C7: Bid Date: | D7: 2013-11-16 | K7: Read the Notes below carefully, as they contain important information and instructions.
C8: Maximum Contract Amount: | D8: 3000000 | K8: Blue cells are calculated fields; DO NOT input data into blue cells.
C9: Lowest Composite Score in $: | D9: =MIN(F17:F24) -> 2461740 | K9: Yellow cells reflect the results and are calculated fields. DO NOT input data into yellow cells.
K10: Col. E formulas must be adjusted to reflect the Adjustment Factors in Campus bid documents.
K11: ENTER DATA into orange cells. Delete sample data shown below.
A12: A | B12: B | C12: C | D12: D | E12: E | F12: F | G12: G | H12: H | I12: I | J12: J | K12: K | L12: L | M12: M | N12: N | O12: O | P12: P | Q12: Q | R12: R | S12: S | T12: T | U12: U | V12: V
A13: Bidder | B13: Normal Working Hours | C13: Other Than Normal Working Hours | D13: Premium Working Hours | E13: Composite Score 1 | F13: Composite Score in $ (Contract Award) | G13: Small Business Preference | J13: SBE Adjusted Composite Score in $ | K13: Ranking (After Application of SBE Pref.) | L13: DVBE Incentive | N13: Total $ SBE/DVBE Adjustments | O13: Final Adjusted Composite Score in $ | P13: Final Ranking | Q13: Required Inclusions in Bids
Q14: (if form submitted with bid, enter mark below)
A15: (enter bidding firm name) | B15: (enter factor for Normal Working Hours) | C15: (enter factor for Other Than Normal Working Hours) | D15: (enter factor for Premium Working Hours) | E15: =(B * 0.8) + (C * 0.15) + (D * 0.05) | F15: =(E * Maximum Contract Amount) | G15: SBE Type (enter SBE Type "Small" or "Non-Small", or leave blank if neither) | H15: SBE % Amt. (enter 5% for "Small" or "Non-small" only, and 0% for all others) | I15: SBE $ Amt. (= N * Lowest Composite Score in $, NTE $50,000) | J15: =(F - I) | K15: (If an SBE is ranked low bidder below, follow instructions in Note 1-b) | L15: Inc. % Amt Bid (see Note 2) | M15: Inc. $ Amt Bid =(L * Lowest Composite Score in $) | N15: =(I + M), NTE $100,000 (see Notes 1-a and 1-c below) | O15: =( F - N) | Q15: Bid Proposal | R15: Bid Prop. Sign. Page | S15: Certification | T15: Bidder's Bond | U15: Noncollusion Declaration | V15: Cert. of Approp. License, DIR PW Reg., & CA Co.
A17: Company 1 | B17: 0.857 | C17: 0.86 | D17: 0.87 | E17: =($B$17*0.8)+($C$17*0.15)+($D$17*0.05) -> 0.8581 | F17: =$E$17*$D$8 -> 2574300 | G17: Small | H17: 0.05 | I17: =IF((D9*H17)>50000,50000,(SMALL($F$17:$F$24,COUNTIF($F$17:$F$24,0)+1)*H17)) -> 50000 | J17: =F17-I17 -> 2524300 | K17: =_xlfn.RANK.EQ(J17,$J$17:$J$24,1) -> 4 | L17: 0.02 | M17: =D9*L17 -> 49234.8 | N17: =MIN(I17+M17,100000) -> 99234.8 | O17: =F17-N17 -> 2475065.2 | P17: =_xlfn.RANK.EQ(O17,$O$17:$O$24,1) -> 4 | Q17:  | R17:  | S17:  | T17:  | U17:  | V17: 
A18: Company 2 | B18: 0.86 | C18: 0.865 | D18: 0.8775 | E18: =($B$18*0.8)+($C$18*0.15)+($D$18*0.05) -> 0.861625 | F18: =$E$18*$D$8 -> 2584875 | H18: 0 | I18: =IF((D9*H18)>50000,50000,(SMALL($F$17:$F$24,COUNTIF($F$17:$F$24,0)+1)*H18)) -> 0 | J18: 2584875 | K18: 6 | L18: 0 | M18: =D9*L18 -> 0 | N18: 0 | O18: 2584875 | P18: =_xlfn.RANK.EQ(O18,$O$17:$O$24,1) -> 7
A19: Company 3 | B19: 0.8575 | C19: 0.861 | D19: 0.865 | E19: =($B$19*0.8)+($C$19*0.15)+($D$19*0.05) -> 0.8584 | F19: =$E$19*$D$8 -> 2575200 | G19: Non-Small | H19: 0.05 | I19: =IF((D9*H19)>50000,50000,(SMALL($F$17:$F$24,COUNTIF($F$17:$F$24,0)+1)*H19)) -> 50000 | J19: 2525200 | K19: 5 | L19: 0.03 | M19: =D9*L19 -> 73852.2 | N19: 100000 | O19: 2475200 | P19: 5
A20: Company 4 | B20: 0.821 | C20: 0.825 | D20: 0.8006 | E20: =($B$20*0.8)+($C$20*0.15)+($D$20*0.05) -> 0.82058 | F20: 2461740 | H20: 0 | I20: =IF((D9*H20)>50000,50000,(SMALL($F$17:$F$24,COUNTIF($F$17:$F$24,0)+1)*H20)) -> 0 | J20: 2461740 | K20: 2 | L20: 0.02 | M20: =D9*L20 -> 49234.8 | N20: 49234.8 | O20: 2412505.2 | P20: 1
A21: Company 5 | B21: 0.8275 | C21: 0.828 | D21: 0.8285 | E21: =($B$21*0.8)+($C$21*0.15)+($D$21*0.05) -> 0.827625 | F21: =$E$21*$D$8 -> 2482875 | H21: 0 | I21: =IF((D9*H21)>50000,50000,(SMALL($F$17:$F$24,COUNTIF($F$17:$F$24,0)+1)*H21)) -> 0 | J21: 2482875 | K21: 3 | L21: 0.01 | M21: =D9*L21 -> 24617.4 | N21: 24617.4 | O21: 2458257.6 | P21: 3
A22: Company 6 | B22: 0.865 | C22: 0.866 | D22: 0.867 | E22: =($B$22*0.8)+($C$22*0.15)+($D$22*0.05) -> 0.86525 | F22: =$E$22*$D$8 -> 2595750 | H22: 0 | I22: =IF((D9*H22)>50000,50000,(SMALL($F$17:$F$24,COUNTIF($F$17:$F$24,0)+1)*H22)) -> 0 | J22: 2595750 | K22: 7 | L22: 0 | M22: =D9*L22 -> 0 | N22: 0 | O22: 2595750 | P22: 8
A23: Company 7 | B23: 0.8325 | C23: 0.835 | D23: 0.8535 | E23: =($B$23*0.8)+($C$23*0.15)+($D$23*0.05) -> 0.833925 | F23: =$E$23*$D$8 -> 2501775 | G23: Small | H23: 0.05 | I23: =IF((D9*H23)>50000,50000,(SMALL($F$17:$F$24,COUNTIF($F$17:$F$24,0)+1)*H23)) -> 50000 | J23: 2451775 | K23: 1 | L23: 0.01 | M23: =D9*L23 -> 24617.4 | N23: 74617.4 | O23: 2427157.6 | P23: 2
A24: Company 8 | B24: 0.88 | C24: 0.8825 | D24: 0.885 | E24: =($B$24*0.8)+($C$24*0.15)+($D$24*0.05) -> 0.880625 | F24: =$E$24*$D$8 -> 2641875 | H24: 0 | I24: =IF((D9*H24)>50000,50000,(SMALL($F$17:$F$24,COUNTIF($F$17:$F$24,0)+1)*H24)) -> 0 | J24: 2641875 | K24: 8 | L24: 0.03 | M24: =D9*L24 -> 73852.2 | N24: 73852.2 | O24: 2568022.8 | P24: 6
E26: I certify that this is a true tabulation of bids received.
I29: (Print Name, Title above) | S29: (Signature)
A31: Notes for Recorder/Announcer:
A32: 1. Award formula for Small Business = Bidder's "Composite Score in $" less 5% of "Lowest Composite Score in $" (NTE $50,000 on bids of $1,000,000 or more).
A33: a. The SBE preference calculation is based on the lowest bidder, unless that bidder is a CA certified SBE or a Non-Small business committing to subcontract 25% of its contract amount to small businesses.
A34: b. If, after applying SBE preference (Col. K), the lowest bidder is a CA certified SBE, then: the low bidder SBE may only be displaced by another SBE; do not calculate the SBE preference for Non-Small businesses and other bidders—for them, replace the $50,000 b. preference with $0; the only bidders eligible for the DVBE incentive are other CA SBEs; for the other non-SBE bidders, replace incentive amount with $0. Using this abstract for example, the figures in red above would be replaced with $0, and b. Company 7 would become low bidder.
A35: c. The Small Business Preference combined with the DVBE Incentive may not exceed $100,000.
A36: 2. In its construction contracts, CSU grants a DVBE bid incentive for bid evaluation purposes only to bidders proposing to exceed the required 3% DVBE participation. The DVBE incentive is added to the required 3% participation as 2. follows: 1% (=total of 4.00% to 4.99% DVBE participation), 2% (=total of 5.00% to 5.99% DVBE participation) or 3% (=total of 6.00% or more DVBE participation) of the "Lowest Composite Score in $".
A37: 3. "Required Inclusions in Bids" (Cols. Q-V) has been added so that the Campus Recorder/Announcer may check off these documents as the bid is opened.
